{"text_format":"1","workbook":"xlsx","n_sheets":1,"sheets":["Blad1"],"not_rendered":{"charts":0,"images":0,"macros":1,"external_links":1,"defined_names":0,"comments":0,"pivot_tables":0},"unopened":[],"bounds":{"document_bytes":16777216,"sheet_cells":100000,"rows_first":2000,"rows_last":500,"rows_between":2000,"halvings":0,"cell_chars":16384,"cell_head_chars":4096},"cells_cut":0,"cells_raw":0,"read":"whole","date_system":"1900"}

{"sheet":"Blad1","index":0,"n_rows":85,"n_cols":38,"rows_kept":85,"cut":false,"hidden":false,"merged":[[0,4,0,7],[0,9,0,12],[0,14,0,17],[0,19,0,22]]}
[null,null,null,null,"typisten/vertalen",null,null,null,"ruw","eerste controle",null,null,null,"v1","tweede controle",null,null,null,"v2","eindcontr.",null,null,null,"def.",null,null,null,"toest.pr."]
[null,null,null,null,"Typist","Uittypen","Binnen","actie vereist","ruw","Corrector","Corrigeren","Binnen","actie vereist","map v1","Corrector2","Corrigeren","Binnen","actie vereist","v2","Eindcontrole","eindcontrole","Binnen","actie vereist","map def.","Naar pred.","Pred. akkoord","status","aantekening"]
[null,null,null,null,"rg","2022-09-22","rgk",{"$f":"IF(AND(ISTEXT(G3),NOT(ISTEXT(J3)),NOT(ISNUMBER(Y3))),\"!\",\"\")","v":"!"},"ja",null,null,null,{"$f":"IF(AND(ISTEXT(L3),NOT(ISTEXT(O3)),NOT(ISNUMBER(Y3))),\"!\",\"\")","v":""},null,null,null,null,{"$f":"IF(AND(ISTEXT(Q3),NOT(ISTEXT(T3)),NOT(ISNUMBER(Y3))),\"!\",\"\")","v":""},null,null,null,null,{"$f":"IF(AND(RIGHT(V3,1)=\"k\",(ISBLANK(Y3))),\"!\",\"\")","v":""},null,null,null,{"$f":"IF(Y3=\"\",IF(U3=\"\",IF(P3=\"\",IF(K3=\"\",IF(F3=\"\",\"\",IF(NOW()-F3>$AK$3,\"!\",\"OK\")),IF(NOW()-K3>$AK$3,\"!\",\"OK\")),IF(NOW()-P3>$AK$3,\"!\",\"OK\")),IF(NOW()-U3>$AK$4,\"!\",\"OK\")),IF(NOW()-Y3>$AK$3,\"!\",\"OK\"))","v":"!"},null,null,"Typisten ",null,null,null,null,null,null,30,"deadline typen/correctie, niet verwijderen"]
[null,null,null,null,"jj","2022-05-19","jjk",{"$f":"IF(AND(ISTEXT(G4),NOT(ISTEXT(J4)),NOT(ISNUMBER(Y4))),\"!\",\"\")","v":""},"ja","cv","2022-06-10","cvk","","ja","al","2022-08-06","alk","","ja","yb","2022-10-03","ybk","!","ja",null,null,{"$f":"IF(Y4=\"\",IF(U4=\"\",IF(P4=\"\",IF(F4=\"\",IF(#REF!=\"\",\"\",IF(NOW()-#REF!>$AK$3,\"!\",\"OK\")),IF(NOW()-F4>$AK$3,\"!\",\"OK\")),IF(NOW()-P4>$AK$3,\"!\",\"OK\")),IF(NOW()-U4>$AK$4,\"!\",\"OK\")),IF(NOW()-Y4>$AK$3,\"!\",\"OK\"))","v":"!"},null,null,null,{"$f":"IF(((COUNTIF(E:E,AF4))+(COUNTIF(J:J,AF4))+(COUNTIF(O:O,AF4))+(COUNTIF(T:T,AF4)))-((COUNTIF(G:G,AF4&\"k\"))+(COUNTIF(L:L,AF4&\"k\"))+(COUNTIF(Q:Q,AF4&\"k\"))+(COUNTIF(V:V,AF4&\"k\")))>0,\"bezig\",\"vrij\")","v":"bezig"},"co",null,null,null,null,21,"deadline eindcorrectie, niet verwijderen"]
[null,null,null,null,"jj","2022-06-14","jjk","","ja","al","2022-06-30","alk","","ja","jv","2022-08-01","jvk","","ja","kl","2022-09-30","klk","","ja","2022-10-21",null,{"$f":"IF(Y5=\"\",IF(U5=\"\",IF(P5=\"\",IF(K5=\"\",IF(F5=\"\",\"\",IF(NOW()-F5>$AK$3,\"!\",\"OK\")),IF(NOW()-K5>$AK$3,\"!\",\"OK\")),IF(NOW()-P5>$AK$3,\"!\",\"OK\")),IF(NOW()-U5>$AK$4,\"!\",\"OK\")),IF(NOW()-Y5>$AK$3,\"!\",\"OK\"))","v":"!"},null,null,null,"vrij","rg"]
[null,null,null,null,"jm","2022-06-14","jmk","!","ja",null,null,null,"",null,null,null,null,"",null,null,null,null,"",null,null,null,"!",null,null,null,"vrij","jj"]
[null,null,null,null,"ll","2022-06-14","llk","","ja","cd","2022-08-01","cdk","","ja","x","x","x","","ja ","kl","2022-09-01","klk","","ja","2022-09-27",null,"!",null,null,null,"bezig","jm"]
[null,null,null,null,null,"2022-06-28","jjk","","ja","kl","2022-08-01","klk","","ja","x","x","x","","ja","ps","2022-10-06","psk","","ja","2022-10-29",null,"!",null,null,null,"bezig","lj"]
[null,null,null,null,"jj","2022-07-18","jjk","","ja","as","2022-08-06","ask","","ja","x","x","x","","ja","ps","2022-09-09","psk","","ja ","2022-09-26",null,"!",null,null,null,"vrij","ll"]
[null,null,null,null,"rg","2022-06-18","rgk","","ja","al","2022-08-19","alj","","x","pn","2022-10-29",null,"","ja",null,null,null,"",null,null,null,"!",null,null,null,"bezig","wb"]
[null,null,null,null,"wb","2022-07-04","wbk","","ja","wb","2022-07-04","wbk","","ja","rk","2022-07-18","rwk","","ja","cb","2022-08-05","cbk","","ja","2022-09-12",null,"!",null,null,null,"bezig","lm"]
[null,null,null,null,"ll","2022-07-14","llk","","ja","rk","2022-08-06","rkk","","ja","x","x","x","!","ja",null,null,null,"",null,null,null,{"$error":"#VALUE!"}]
[null,null,null,null,"wb","2022-07-11","wbk","","ja","wb","2022-07-11","wbk","","ja","jv","2022-09-09","jvk","","ja","kl","2022-10-20",null,"",null,null,null,"!"]
[null,null,null,null,"jj","2022-07-28","jjk","","ja","hb","2022-10-07","hbk","","ja","x","x","x","","ja","ps","2022-10-31",null,"",null,null,null,"!",null,null,null,{"$f":"IF(((COUNTIF(E:E,AF14))+(COUNTIF(J:J,AF14))+(COUNTIF(O:O,AF14))+(COUNTIF(T:T,AF14)))-((COUNTIF(G:G,AF14&\"k\"))+(COUNTIF(L:L,AF14&\"k\"))+(COUNTIF(Q:Q,AF14&\"k\"))+(COUNTIF(V:V,AF14&\"k\")))>0,\"bezig\",\"vrij\")","v":"bezig"},"ar"]
[null,null,null,null,"rg","2022-08-01","rgk","","ja","al","2022-10-20","alk","","ja","rw","2022-10-29",null,"",null,null,null,null,"",null,null,null,"!",null,null,null,{"$f":"IF(((COUNTIF(E:E,AF15))+(COUNTIF(J:J,AF15))+(COUNTIF(O:O,AF15))+(COUNTIF(T:T,AF15)))-((COUNTIF(G:G,AF15&\"k\"))+(COUNTIF(L:L,AF15&\"k\"))+(COUNTIF(Q:Q,AF15&\"k\"))+(COUNTIF(V:V,AF15&\"k\")))>0,\"bezig\",\"vrij\")","v":"vrij"},"nk"]
[null,null,null,null,"x","x","x","","ja","ar","2022-07-04","ark","","ja","rw","2022-09-09","rwk","!",null,null,null,null,"",null,null,null,"!"]
[null,null,null,null,"ar","2022-08-27","ark","","ja","ar","2022-08-27","ark","","ja","cd","2022-09-27","cdk","","ja","cb","2022-10-29","cbk","","ja","2022-11-03",null,"!"]
[null,null,null,null,"jj","2022-08-30","jjk","","ja","pn","2022-09-23","pnk","","ja","x","x","x","","ja","cb","2022-10-01","cbk","!",null,null,null,"!",null,null,null,{"$f":"IF(((COUNTIF(E:E,AF18))+(COUNTIF(J:J,AF18))+(COUNTIF(O:O,AF18))+(COUNTIF(T:T,AF18)))-((COUNTIF(G:G,AF18&\"k\"))+(COUNTIF(L:L,AF18&\"k\"))+(COUNTIF(Q:Q,AF18&\"k\"))+(COUNTIF(V:V,AF18&\"k\")))>0,\"bezig\",\"vrij\")","v":"vrij"},"cb"]
[null,null,null,null,"jj","2022-09-22","jjk","","ja","pl","2022-10-17",null,"",null,null,null,null,"",null,null,null,null,"",null,null,null,"!",null,null,null,{"$f":"IF(((COUNTIF(E:E,AF19))+(COUNTIF(J:J,AF19))+(COUNTIF(O:O,AF19))+(COUNTIF(T:T,AF19)))-((COUNTIF(G:G,AF19&\"k\"))+(COUNTIF(L:L,AF19&\"k\"))+(COUNTIF(Q:Q,AF19&\"k\"))+(COUNTIF(V:V,AF19&\"k\")))>0,\"bezig\",\"vrij\")","v":"bezig"},"ps"]
[null,null,null,null,"x","x","x","","ja","x","x","x","","ja","x","x","x","","ja","cb","2022-08-29","cbk","","ja","2022-09-12","2022-08-29","!",null,null,null,{"$f":"IF(((COUNTIF(E:E,AF20))+(COUNTIF(J:J,AF20))+(COUNTIF(O:O,AF20))+(COUNTIF(T:T,AF20)))-((COUNTIF(G:G,AF20&\"k\"))+(COUNTIF(L:L,AF20&\"k\"))+(COUNTIF(Q:Q,AF20&\"k\"))+(COUNTIF(V:V,AF20&\"k\")))>0,\"bezig\",\"vrij\")","v":"bezig"},"yb"]
[null,null,null,null,"x","x","x","","ja","x","x","x","","ja","x","x","x","","ja","ps","2022-08-26","psk","","ja","2022-10-21",null,"!"]
[null,null,null,null,"x","x","x","","ja","x","x","x","","ja","x","x","x","","ja","ps","2022-08-26","psk","","ja","2022-10-21",null,"!",null,null,"Correctoren"]
[null,null,null,null,"x","x","x","","ja","x","x","x","","ja","x","x","x","","ja","cb","2022-10-06","cbk","","ja","2022-10-21",null,"!",null,null,null,{"$f":"IF(((COUNTIF(E:E,AF23))+(COUNTIF(J:J,AF23))+(COUNTIF(O:O,AF23))+(COUNTIF(T:T,AF23)))-((COUNTIF(G:G,AF23&\"k\"))+(COUNTIF(L:L,AF23&\"k\"))+(COUNTIF(Q:Q,AF23&\"k\"))+(COUNTIF(V:V,AF23&\"k\")))>0,\"bezig\",\"vrij\")","v":"bezig"},"cv"]
[null,null,null,null,"x","x","x","","ja","x","x","x","","ja","x","x","x","","ja","ps","2022-08-26","psk","","ja","2022-10-21",null,"!",null,null,null,"bezig","al"]
[null,null,null,null,"x","x","x","","ja","pl","2022-09-23","plk","","ja","x","x","x","","ja","ps","2022-10-11","psk","","ja","2022-10-17",null,"!",null,null,null,"bezig","jt"]
[null,null,null,null,"lm","2022-09-05","lmk","","ja","cv","2022-10-20",null,"",null,"yb",null,null,"",null,null,null,null,"",null,null,null,"!",null,null,null,"bezig","kl"]
[null,null,null,null,"ll","2022-10-11","llk","","ja","cd","2022-10-29",null,"",null,null,null,null,"",null,null,null,null,"",null,null,null,"!",null,null,null,"bezig","rk"]
[null,null,null,null,"x","x","x","","ja","al","2022-10-06","alk","","ja","rk","2022-10-29",null,"",null,null,null,null,"",null,null,null,"!",null,null,null,"vrij","rw"]
[null,null,null,null,"x","x","x","","ja","jl","2022-09-29",null,"",null,null,null,null,"",null,null,null,null,"",null,null,null,"!",null,null,null,"bezig","cd"]
[null,null,null,null,"x","x","x","!","ja",null,null,null,"",null,null,null,null,"",null,null,null,null,"",null,null,null,{"$error":"#VALUE!"},null,null,null,"bezig","pl"]
[null,null,null,null,"x","x","x","!","ja",null,null,null,"",null,null,null,null,"",null,null,null,null,"",null,null,null,{"$error":"#VALUE!"},null,null,null,"bezig","pn"]
[null,null,null,null,"lj","2022-08-06","ljk","","ja ","al","2022-09-26","alk","","ja","jv","2022-10-20",null,"",null,null,null,null,"",null,null,null,"!",null,null,null,"bezig","as"]
[null,null,null,null,"jj","2022-08-19","jjk","","ja","gs","2022-10-13","gsk","","ja","x","x","x","!","ja",null,null,null,"",null,null,null,{"$error":"#VALUE!"},null,null,null,"bezig","jl"]
[null,null,null,null,"x","x","x","","ja","x","x","x","","ja","x","x","x","","ja","ah",null,null,"",null,null,null,null,null,null,null,"bezig","jv"]
[null,null,null,null,"ar","2022-11-03",null,"",null,null,null,null,"",null,null,null,null,"",null,null,null,null,"",null,null,null,null,null,null,null,"vrij","hb"]
[null,null,null,null,null,null,null,"",null,null,null,null,"",null,null,null,null,"",null,null,null,null,"",null,null,null,null,null,null,null,"vrij","gs"]
[null,null,null,null,null,null,null,"",null,null,null,null,"",null,null,null,null,"",null,null,null,null,""]
[null,null,null,null,"lm","2022-10-20",null,"",null,null,null,null,"",null,null,null,null,"",null,null,null,null,"",null,null,null,null,null,null,null,{"$f":"IF(((COUNTIF(E:E,AF38))+(COUNTIF(J:J,AF38))+(COUNTIF(O:O,AF38))+(COUNTIF(T:T,AF38)))-((COUNTIF(G:G,AF38&\"k\"))+(COUNTIF(L:L,AF38&\"k\"))+(COUNTIF(Q:Q,AF38&\"k\"))+(COUNTIF(V:V,AF38&\"k\")))>0,\"bezig\",\"vrij\")","v":"bezig"},"mj"]
[null,null,null,null,null,null,null,"",null,null,null,null,"",null,null,null,null,"",null,null,null,null,"",null,null,null,null,null,null,null,{"$f":"IF(((COUNTIF(E:E,AF39))+(COUNTIF(J:J,AF39))+(COUNTIF(O:O,AF39))+(COUNTIF(T:T,AF39)))-((COUNTIF(G:G,AF39&\"k\"))+(COUNTIF(L:L,AF39&\"k\"))+(COUNTIF(Q:Q,AF39&\"k\"))+(COUNTIF(V:V,AF39&\"k\")))>0,\"bezig\",\"vrij\")","v":"bezig"},"ae"]
[null,null,null,null,null,null,null,"",null,null,null,null,"",null,null,null,null,"",null,null,null,null,""]
[null,null,null,null,"jj","2022-10-20",null,"",null,null,null,null,"",null,null,null,null,"",null,null,null,null,""]
[null,null,null,null,null,null,null,"",null,null,null,null,"",null,null,null,null,"",null,null,null,null,""]
[null,null,null,null,null,null,null,"",null,null,null,null,"",null,null,null,null,"",null,null,null,null,""]
[null,null,null,null,null,null,null,"",null,null,null,null,"",null,null,null,null,"",null,null,null,null,""]
[null,null,null,null,"wb","2022-10-20",null,"",null,null,null,null,"",null,null,null,null,"",null,null,null,null,""]
[null,null,null,null,null,null,null,"",null,null,null,null,"",null,null,null,null,"",null,null,null,null,""]
[null,null,null,null,"lj","2022-10-20",null,"",null,null,null,null,"",null,null,null,null,"",null,null,null,null,""]
[null,null,null,null,"x","x","x","","ja","jt","2022-10-20",null,"",null,null,null,null,"",null,null,null,null,""]
[null,null,null,null,null,null,null,"",null,null,null,null,"",null,null,null,null,"",null,null,null,null,""]
[null,null,null,null,null,null,null,"",null,null,null,null,"",null,null,null,null,"",null,null,null,null,""]
[null,null,null,null,null,null,null,"",null,null,null,null,"",null,null,null,null,"",null,null,null,null,""]
[null,null,null,null,null,null,null,"",null,null,null,null,"",null,null,null,null,"",null,null,null,null,""]
[null,null,null,null,null,null,null,"",null,null,null,null,"",null,null,null,null,"",null,null,null,null,""]
[null,null,null,null,"x","x","x","","ja","as","2022-10-20",null,"",null,null,null,null,"",null,null,null,null,""]
[null,null,null,null,null,null,null,"",null,null,null,null,"",null,null,null,null,"",null,null,null,null,""]
[null,null,null,null,null,null,null,"",null,null,null,null,"",null,null,null,null,"",null,null,null,null,""]
[null,null,null,null,null,null,null,"",null,null,null,null,"",null,null,null,null,"",null,null,null,null,""]
[null,null,null,null,null,null,null,"",null,null,null,null,"",null,null,null,null,"",null,null,null,null,""]
[null,null,null,null,null,null,null,"",null,null,null,null,"",null,null,null,null,"",null,null,null,null,""]
[null,null,null,null,null,null,null,"",null,null,null,null,"",null,null,null,null,"",null,null,null,null,""]
[null,null,null,null,null,null,null,"",null,null,null,null,"",null,null,null,null,"",null,null,null,null,"",null,null,null,null,null,null,null,{"$f":"IF(((COUNTIF(E:E,AF61))+(COUNTIF(J:J,AF61))+(COUNTIF(O:O,AF61))+(COUNTIF(T:T,AF61)))-((COUNTIF(G:G,AF61&\"k\"))+(COUNTIF(L:L,AF61&\"k\"))+(COUNTIF(Q:Q,AF61&\"k\"))+(COUNTIF(V:V,AF61&\"k\")))>0,\"bezig\",\"vrij\")","v":"vrij"},"am"]
[null,null,null,null,null,null,null,"",null,null,null,null,"",null,null,null,null,"",null,null,null,null,"",null,null,null,null,null,null,null,{"$f":"IF(((COUNTIF(E:E,AF62))+(COUNTIF(J:J,AF62))+(COUNTIF(O:O,AF62))+(COUNTIF(T:T,AF62)))-((COUNTIF(G:G,AF62&\"k\"))+(COUNTIF(L:L,AF62&\"k\"))+(COUNTIF(Q:Q,AF62&\"k\"))+(COUNTIF(V:V,AF62&\"k\")))>0,\"bezig\",\"vrij\")","v":"vrij"},"jo"]
[null,null,null,null,null,null,null,"",null,null,null,null,"",null,null,null,null,"",null,null,null,null,"",null,null,null,null,null,null,null,{"$f":"IF(((COUNTIF(E:E,AF63))+(COUNTIF(J:J,AF63))+(COUNTIF(O:O,AF63))+(COUNTIF(T:T,AF63)))-((COUNTIF(G:G,AF63&\"k\"))+(COUNTIF(L:L,AF63&\"k\"))+(COUNTIF(Q:Q,AF63&\"k\"))+(COUNTIF(V:V,AF63&\"k\")))>0,\"bezig\",\"vrij\")","v":"bezig"},"ah"]
[null,null,null,null,null,null,null,"",null,null,null,null,"",null,null,null,null,"",null,null,null,null,"",null,null,null,null,null,null,null,{"$f":"IF(((COUNTIF(E:E,AF64))+(COUNTIF(J:J,AF64))+(COUNTIF(O:O,AF64))+(COUNTIF(T:T,AF64)))-((COUNTIF(G:G,AF64&\"k\"))+(COUNTIF(L:L,AF64&\"k\"))+(COUNTIF(Q:Q,AF64&\"k\"))+(COUNTIF(V:V,AF64&\"k\")))>0,\"bezig\",\"vrij\")","v":"vrij"},"rv"]
[null,null,null,null,null,null,null,"",null,null,null,null,"",null,null,null,null,"",null,null,null,null,""]
[null,null,null,null,null,null,null,"",null,null,null,null,"",null,null,null,null,"",null,null,null,null,"",null,null,null,null,null,null,null,{"$f":"IF(((COUNTIF(E:E,AF66))+(COUNTIF(J:J,AF66))+(COUNTIF(O:O,AF66))+(COUNTIF(T:T,AF66)))-((COUNTIF(G:G,AF66&\"k\"))+(COUNTIF(L:L,AF66&\"k\"))+(COUNTIF(Q:Q,AF66&\"k\"))+(COUNTIF(V:V,AF66&\"k\")))>0,\"bezig\",\"vrij\")","v":"vrij"},"mp"]
[null,null,null,null,null,null,null,"",null,null,null,null,{"$f":"IF(AND(ISTEXT(L67),NOT(ISTEXT(O67)),NOT(ISNUMBER(Y67))),\"!\",\"\")","v":""},null,null,null,null,{"$f":"IF(AND(ISTEXT(Q67),NOT(ISTEXT(T67)),NOT(ISNUMBER(Y67))),\"!\",\"\")","v":""},null,null,null,null,{"$f":"IF(AND(RIGHT(V67,1)=\"k\",(ISBLANK(Y67))),\"!\",\"\")","v":""}]
[null,null,null,null,null,null,null,{"$f":"IF(AND(ISTEXT(G68),NOT(ISTEXT(J68)),NOT(ISNUMBER(Y68))),\"!\",\"\")","v":""},null,null,null,null,"",null,null,null,null,"",null,null,null,null,""]
[null,null,null,null,null,null,null,"",null,null,null,null,"",null,null,null,null,"",null,null,null,null,""]
[null,null,null,null,"jm","2022-08-26",null,"",null,null,null,null,"",null,null,null,null,"",null,null,null,null,"",null,null,null,{"$f":"IF(Y71=\"\",IF(P71=\"\",IF(K71=\"\",IF(F71=\"\",\"\",IF(NOW()-F71>[1]proces!$AK$3,\"!\",\"OK\")),IF(NOW()-K71>[1]proces!$AK$3,\"!\",\"OK\")),IF(NOW()-P71>[1]proces!$AK$3,\"!\",\"OK\")),IF(NOW()-Y71>[1]proces!$AK$3,\"!\",\"OK\"))","v":"!"}]
[null,null,null,null,"co","2022-08-26",null,"",null,null,null,null,"",null,null,null,null,"",null,null,null,null,"",null,null,null,{"$f":"IF(Y70=\"\",IF(P70=\"\",IF(K70=\"\",IF(F70=\"\",\"\",IF(NOW()-F70>[1]proces!$AK$3,\"!\",\"OK\")),IF(NOW()-K70>[1]proces!$AK$3,\"!\",\"OK\")),IF(NOW()-P70>[1]proces!$AK$3,\"!\",\"OK\")),IF(NOW()-Y70>[1]proces!$AK$3,\"!\",\"OK\"))","v":"!"}]
[null,null,null,null,"ae","2022-10-22",null,"",null,null,null,null,"",null,null,null,null,"",null,null,null,null,""]
[null,null,null,null,"mj","2022-10-22",null,"",null,null,null,null,"",null,null,null,null,"",null,null,null,null,""]
[null,null,null,null,"x","x","x","","ja","x","x","x","","ja","x","x","x","!","ja",null,null,null,"",null,null,null,{"$f":"IF(Y74=\"\",IF(P74=\"\",IF(K74=\"\",IF(F74=\"\",\"\",IF(NOW()-F74>[1]proces!$AK$3,\"!\",\"OK\")),IF(NOW()-K74>[1]proces!$AK$3,\"!\",\"OK\")),IF(NOW()-P74>[1]proces!$AK$3,\"!\",\"OK\")),IF(NOW()-Y74>[1]proces!$AK$3,\"!\",\"OK\"))","v":{"$error":"#VALUE!"}}]
[null,null,null,null,null,null,null,"",null,null,null,null,"",null,null,null,null,"",null,null,null,null,""]
[null,null,null,null,null,null,null,"",null,null,null,null,"",null,null,null,null,"",null,null,null,null,""]
[null,null,null,null,null,null,null,"",null,null,null,null,"",null,null,null,null,"",null,null,null,null,""]
[null,null,null,null,null,null,null,"",null,null,null,null,"",null,null,null,null,"",null,null,null,null,""]
[null,null,null,null,null,null,null,"",null,null,null,null,"",null,null,null,null,"",null,null,null,null,""]
[null,null,null,null,null,null,null,"",null,null,null,null,"",null,null,null,null,"",null,null,null,null,""]
[null,null,null,null,null,null,null,"",null,null,null,null,null,null,null,null,null,"",null,null,null,null,""]
[null,null,null,null,null,null,null,"",null,null,null,null,null,null,null,null,null,"",null,null,null,null,""]
[null,null,null,null,null,null,null,"",null,null,null,null,null,null,null,null,null,"",null,null,null,null,""]
[null,null,null,null,null,null,null,null,null,null,null,null,null,null,null,null,null,"",null,null,null,null,""]
[null,null,null,null,null,null,null,null,null,null,null,null,null,null,null,null,null,"",null,null,null,null,""]